bitfinex/quotes_SOLUSD_20220118
["timestamp","ask_amount","ask_price","bid_price","bid_amount"]
[1642512800643,8.26262137,135.66,135.62,76.808]
[1642512800844,8.26262137,135.66,135.63,0.25]
[1642512801044,4.06928112,135.66,135.64,9.01239994]
[1642512801247,4.06928112,135.69,135.65,0.25]
[1642512801649,6.15532445,135.72,135.65,11.3042]
[1642512802046,6.15532445,135.72,135.65,11.5642]
[1642512802247,6.15532445,135.72,135.66,6.0]
[1642512802646,6.15532445,135.72,135.67,3.38667259]
[1642512803449,6.15532445,135.72,135.67,11.49097259]
[1642512803849,4.19139435,135.75,135.67,11.49097259]
[1642512804450,4.19139435,135.75,135.68,6.0]
[1642512804649,4.19139435,135.75,135.7,11.0497]
[1642512805059,4.19139435,135.76,135.71,0.25]
[1642512806259,4.19139435,135.77,135.72,11.0486]
[1642512806460,4.19139435,135.77,135.73,73.86]
[1642512806660,4.19139435,135.77,135.73,92.297]
[1642512806859,4.19139435,135.77,135.73,92.557]
[1642512807660,4.19139435,135.8,135.73,92.557]
[1642512808059,4.19139435,135.8,135.74,11.0456]
[1642512808262,34.90013927,135.79,135.75,0.25]
[1642512808460,34.90013927,135.79,135.74,10.65]
[1642512808661,2.946,135.78,135.71,2.946]
[1642512808862,2.946,135.78,135.69,73.86]
[1642512809063,37.84613927,135.79,135.7,13.596]
[1642512809363,48.89563927,135.79,135.7,10.65]
[1642512809765,13.9955,135.79,135.71,0.25]
[1642512810165,13.9955,135.79,135.7,10.65]
[1642512810568,4.19139435,135.78,135.7,10.65]
[1642512810767,11.0527,135.76,135.66,27.6269]
[1642512810967,2.947,135.75,135.66,35.3309]
[1642512811268,2.947,135.75,135.67,16.83967259]
[1642512811467,2.947,135.77,135.68,2.947]
[1642512811667,2.947,135.81,135.67,19.78667259]
[1642512811867,11.051,135.77,135.68,0.25]
[1642512812081,44.26127096,135.76,135.67,2.947]
[1642512812282,46.95827096,135.76,135.67,2.947]
[1642512812581,2.947,135.76,135.67,2.947]
[1642512812980,11.0526,135.75,135.67,13.9996]
[1642512813182,2.947,135.77,135.68,0.25]
[1642512813582,10.19060021,135.8,135.69,10.65]
[1642512813583,4.19060021,135.75,135.69,10.65]
[1642512813783,4.19060021,135.75,135.7,0.25]
[1642512813982,4.19060021,135.75,135.7,11.2999]
[1642512814182,4.19060021,135.75,135.7,11.5599]
[1642512814485,4.19060021,135.78,135.7,11.5599]
[1642512814882,4.19060021,135.78,135.7,11.2999]
[1642512815082,2.946,135.77,135.7,11.2999]
[1642512815486,2.946,135.77,135.7,11.5599]
[1642512815683,2.946,135.79,135.7,14.5059]
[1642512815885,2.946,135.8,135.7,14.5059]
[1642512816084,2.946,135.8,135.7,14.2459]
[1642512816286,2.946,135.8,135.71,73.86]
[1642512816485,11.0493,135.79,135.71,84.9088]
[1642512816684,2.946,135.81,135.72,0.25]
[1642512817285,2.946,135.82,135.72,0.25]
[1642512817487,13.9936,135.82,135.73,10.65]
[1642512817689,11.0476,135.82,135.74,0.25]
[1642512818089,4.18198342,135.81,135.74,0.25]
[1642512818491,4.18198342,135.81,135.74,74.11]
[1642512818688,4.18198342,135.81,135.74,74.37]
[1642512818887,4.18198342,135.83,135.74,96.0667]
[1642512819087,4.18198342,135.83,135.75,2.946]
[1642512819289,6.0,135.82,135.76,0.25]
[1642512819692,41.37161591,135.81,135.75,2.946]
[1642512819890,44.31661591,135.81,135.74,10.65]
[1642512820092,6.0,135.8,135.71,10.65]
[1642512820292,2.946,135.79,135.71,10.65]
[1642512821093,2.946,135.79,135.71,84.51]
[1642512821291,11.0496,135.79,135.72,0.25]
[1642512823195,47.42634551,135.78,135.72,0.25]
[1642512823400,11.051,135.77,135.7,2.946]
[1642512823799,2.946,135.76,135.7,2.946]
[1642512823999,40.10436538,135.75,135.7,2.946]
[1642512824400,2.947,135.74,135.7,2.946]
[1642512824699,3.197,135.74,135.67,0.9772224]
[1642512824900,49.28318197,135.72,135.67,0.9772224]
[1642512825098,2.947,135.71,135.67,0.9772224]
[1642512825398,11.0576,135.7,135.67,0.9772224]
[1642512825600,49.28318197,135.72,135.68,6.06439994]
[1642512825800,2.948,135.73,135.68,6.06439994]
[1642512826400,0.25,135.72,135.68,6.06439994]
[1642512826600,2.947,135.71,135.68,6.06439994]
[1642512826800,2.947,135.71,135.67,0.9772224]
[1642512827201,2.947,135.74,135.67,0.9772224]
[1642512827404,2.947,135.74,135.63,98.1977]
[1642512827603,2.948,135.77,135.64,80.11]
[1642512827804,11.055,135.73,135.64,91.02]
[1642512828003,11.055,135.73,135.64,93.708]
[1642512828204,44.85593282,135.72,135.64,93.708]
[1642512828406,44.85593282,135.72,135.64,93.968]
[1642512828604,11.055,135.73,135.64,87.968]
[1642512829504,11.055,135.73,135.64,99.0227]
[1642512830907,54.94488553,135.75,135.64,99.0227]
[1642512831109,51.99688553,135.75,135.64,99.0227]
[1642512832007,11.0532,135.75,135.64,99.0227]
[1642512832410,11.0532,135.75,135.65,6.0]
[1642512832611,11.0532,135.75,135.67,11.0528]
[1642512832811,2.947,135.77,135.68,0.25]
[1642512833010,39.99636633,135.77,135.68,6.25]
[1642512833611,2.947,135.77,135.68,80.11]
[1642512833810,2.947,135.77,135.68,17.302]
[1642512834014,4.18353854,135.76,135.68,17.302]
[1642512834611,4.18353854,135.76,135.69,73.86]
[1642512834913,4.18353854,135.76,135.7,11.3004]
[1642512835112,21.38976299,135.78,135.7,11.3004]
[1642512835514,21.38976299,135.78,135.7,85.1604]
[1642512836412,4.18353854,135.77,135.7,85.1604]
[1642512836815,4.18353854,135.77,135.7,11.3004]
[1642512837215,4.18353854,135.77,135.7,85.1604]
[1642512837716,4.18353854,135.77,135.7,84.9104]
[1642512838340,4.18353854,135.77,135.7,85.1704]
[1642512838943,11.0509,135.78,135.71,0.25]
[1642512839143,11.0509,135.78,135.71,11.2995]
[1642512839742,11.0509,135.78,135.71,0.25]
[1642512840543,42.3545418,135.77,135.71,0.25]
[1642512840843,42.3545418,135.77,135.68,10.65]
[1642512840844,11.0525,135.76,135.72,0.09517739]
[1642512841042,2.946,135.75,135.72,0.09517739]
[1642512841243,2.946,135.76,135.73,6.06439994]
[1642512841442,2.946,135.76,135.72,0.09517739]
[1642512841653,0.25,135.75,135.72,0.09517739]
[1642512841844,11.0566,135.73,135.72,0.09517739]
[1642512843045,11.0534,135.75,135.72,0.09517739]
[1642512844146,11.0534,135.75,135.73,6.06439994]
[1642512845747,11.0534,135.75,135.72,0.09517739]
[1642512846454,11.0534,135.75,135.73,6.06439994]
[1642512846655,11.0534,135.75,135.72,0.09517739]
[1642512848056,42.74056215,135.74,135.72,0.09517739]
[1642512848257,11.0551,135.73,135.72,0.09517739]
[1642512850157,2.947,135.74,135.72,0.09517739]
[1642512850357,2.947,135.74,135.72,3.12737736]
[1642512850557,2.947,135.74,135.73,3.03219997]
[1642512850757,6.15532445,135.79,135.73,3.03219997]
[1642512850758,2.947,135.78,135.73,3.03219997]
[1642512850959,6.15532445,135.77,135.73,3.03219997]
[1642512851760,6.15532445,135.77,135.74,0.25]
[1642512851963,6.15532445,135.77,135.75,3.03219997]
[1642512852260,10.3458158,135.79,135.76,3.03219997]
[1642512852960,10.3458158,135.81,135.76,3.03219997]
[1642512853567,21.3942158,135.81,135.76,3.03219997]
[1642512855264,4.19049135,135.8,135.76,3.03219997]
[1642512858368,11.0484,135.81,135.76,3.03219997]
[1642512861669,11.0484,135.81,135.78,0.09517739]
[1642512862073,5.3458158,135.82,135.79,6.06439994]
[1642512862271,5.3458158,135.82,135.8,0.25]
[1642512862471,5.3458158,135.82,135.79,6.15]
[1642512862872,25.7701,135.87,135.79,6.15]
[1642512863073,42.06431097,135.87,135.79,6.15]
[1642512863473,6.0,135.86,135.79,6.15]
[1642512863673,6.0,135.86,135.8,0.25]
[1642512864073,6.0,135.87,135.8,0.25]
[1642512865574,2.944,135.88,135.8,11.2925]
[1642512865776,2.944,135.91,135.8,11.5525]
[1642512865975,22.5106,135.92,135.81,38.2268]
[1642512866175,22.5106,135.92,135.82,0.25]
[1642512866376,2.944,135.94,135.83,2.943]
[1642512866578,45.62240671,135.93,135.83,25.4887]
[1642512866776,45.62240671,135.93,135.84,74.11]
[1642512867178,45.62240671,135.93,135.84,74.37]
[1642512867577,2.944,135.94,135.84,85.4083]
[1642512868576,38.42280316,135.96,135.84,85.4083]
[1642512868777,38.42280316,135.96,135.85,24.2805]
[1642512868979,37.92280316,135.96,135.87,11.0369]
[1642512869178,37.92280316,135.96,135.88,0.25]
[1642512869782,0.25,135.95,135.88,0.25]
[1642512869977,46.79802732,135.93,135.88,0.25]
[1642512870381,46.79802732,135.93,135.86,0.25]
[1642512871579,46.79802732,135.93,135.92,0.09517739]
[1642512871778,2.942,135.96,135.92,0.09517739]
[1642512872507,2.942,135.96,135.86,0.51]
[1642512872804,37.51496967,135.95,135.86,0.25]
[1642512873404,37.51496967,135.95,135.88,11.0363]
[1642512873806,2.942,135.96,135.89,0.25]
[1642512874409,2.942,135.98,135.89,0.25]
[1642512874613,9.192,135.98,135.89,0.25]
[1642512874809,49.2852032,135.97,135.89,0.25]
[1642512875011,9.192,135.96,135.88,11.0363]
[1642512875210,9.192,135.96,135.86,2.943]
[1642512875211,10.98105272,135.96,135.86,2.943]
[1642512875410,18.30005272,135.96,135.81,8.943]
[1642512875614,12.43905272,135.95,135.81,16.65]
[1642512875811,46.70665226,135.93,135.81,13.593]
[1642512876010,8.943,135.92,135.81,13.593]
[1642512876410,8.943,135.92,135.81,87.453]
[1642512876411,2.943,135.92,135.81,87.453]
[1642512876710,2.943,135.92,135.82,0.25]
[1642512876911,2.943,135.92,135.83,2.943]
[1642512877311,0.25,135.91,135.84,0.25]
[1642512878011,0.25,135.91,135.82,2.943]
[1642512878212,39.70670836,135.9,135.82,2.943]
[1642512878415,42.65070836,135.9,135.82,2.943]
[1642512878614,0.25,135.89,135.82,2.943]
[1642512878814,2.944,135.88,135.82,2.943]
[1642512879015,38.0208558,135.87,135.82,2.943]
[1642512879916,2.944,135.88,135.82,2.943]
[1642512880116,2.944,135.9,135.83,0.25]
[1642512880316,2.944,135.93,135.84,2.944]
[1642512880520,27.0618,135.96,135.84,8.27]
[1642512880719,24.1188,135.96,135.85,23.3807]
[1642512880919,46.72729714,135.95,135.86,2.943]
[1642512881317,46.72729714,135.95,135.87,11.287]
[1642512883823,46.72729714,135.95,135.87,0.25]
[1642512884118,0.25,135.94,135.86,2.943]
[1642512884318,59.16634986,135.95,135.86,2.943]
[1642512884519,22.02235272,135.94,135.86,2.943]
[1642512885619,17.2903,135.94,135.84,2.943]
[1642512885820,17.0403,135.94,135.84,37.3652]
[1642512886020,6.0,135.94,135.84,37.3652]
[1642512886319,6.0,135.94,135.84,48.4048]
[1642512886523,46.72729714,135.95,135.85,6.0]
[1642512886720,2.943,135.94,135.86,10.9]
[1642512886920,2.943,135.94,135.86,10.65]
[1642512887121,0.25,135.93,135.86,10.65]
[1642512887322,13.9845,135.92,135.86,10.65]
[1642512887522,48.6769086,135.91,135.86,10.65]
[1642512887725,48.6769086,135.91,135.84,23.5222]
[1642512888722,48.6769086,135.91,135.81,13.593]
[1642512888923,48.6769086,135.91,135.81,37.0415]
[1642512889123,59.7192086,135.91,135.81,37.0415]
[1642512889328,15.63305272,135.9,135.81,2.943]
[1642512889524,28.73505272,135.9,135.81,2.943]
[1642512889724,1.78905272,135.89,135.81,2.943]
[1642512889924,2.944,135.88,135.81,2.943]
[1642512890126,9.194,135.88,135.81,2.943]
[1642512891128,20.24,135.88,135.76,2.944]
[1642512891327,19.99,135.88,135.77,24.874]
[1642512891526,8.944,135.88,135.78,8.944]
[1642512891727,2.944,135.9,135.79,10.65]
[1642512891929,48.6769086,135.91,135.8,2.944]
[1642512892127,48.6769086,135.91,135.82,11.0412]
[1642512892328,52.85495264,135.91,135.83,3.194]
[1642512892527,55.79895264,135.91,135.83,0.25]
[1642512894129,51.6209086,135.91,135.83,0.25]
[1642512894731,48.6769086,135.91,135.83,11.2902]
[1642512895030,7.12104404,135.92,135.83,21.9402]
[1642512895229,4.17804404,135.92,135.84,2.943]
[1642512895630,4.17804404,135.92,135.85,0.25]
[1642512896030,47.31299115,135.91,135.85,0.25]
[1642512896431,47.31299115,135.91,135.86,11.0377]
[1642512896833,47.31299115,135.91,135.85,0.25]
[1642512897631,47.31299115,135.91,135.84,2.943]
[1642512897832,47.31299115,135.91,135.82,24.0311]
[1642512898033,2.943,135.9,135.82,24.0311]
[1642512898231,2.943,135.9,135.83,0.25]
[1642512898629,2.943,135.9,135.83,11.2904]
[1642512899029,2.943,135.9,135.83,0.25]
[1642512899232,2.943,135.9,135.82,24.0311]
[1642512899532,2.943,135.9,135.83,0.25]
[1642512900536,2.943,135.9,135.81,0.25]
[1642512901138,6.0,135.89,135.81,0.25]
[1642512901341,2.943,135.9,135.81,0.25]
[1642512901536,6.25,135.89,135.8,2.944]
[1642512901738,2.944,135.88,135.8,2.944]
[1642512902037,6.0,135.87,135.8,2.944]
[1642512902240,38.42945699,135.86,135.8,2.944]
[1642512902439,38.42945699,135.86,135.76,13.9899]
[1642512902639,6.0,135.85,135.76,13.9899]
[1642512903041,6.0,135.85,135.77,0.25]
[1642512903240,8.945,135.85,135.77,0.25]
[1642512903640,8.945,135.85,135.77,11.2952]
[1642512903841,6.0,135.85,135.77,11.5552]
[1642512904040,6.0,135.88,135.78,2.945]
[1642512904240,6.0,135.88,135.79,0.25]
[1642512904646,49.67752459,135.9,135.79,5.845]
[1642512904841,36.08252459,135.9,135.8,2.944]
[1642512905043,36.08252459,135.9,135.8,76.804]
[1642512905244,36.08252459,135.9,135.81,0.25]
[1642512906070,4.17804404,135.91,135.83,11.0401]
[1642512906268,7.12204404,135.93,135.84,0.25]
[1642512906469,7.12204404,135.93,135.84,6.25]
[1642512906669,6.25,135.92,135.84,6.25]
[1642512907069,6.25,135.92,135.84,17.2893]
[1642512907369,2.944,135.93,135.84,17.2893]
[1642512907569,2.944,135.93,135.84,40.4782]
[1642512907769,2.944,135.93,135.85,73.86]
[1642512908169,7.12104404,135.95,135.86,11.2878]
[1642512908469,4.17804404,135.95,135.87,10.65]
[1642512908672,4.17804404,135.95,135.88,0.25]
[1642512909171,46.44681773,135.96,135.88,0.25]
[1642512909569,46.44681773,135.96,135.89,11.0345]
[1642512909773,46.44681773,135.96,135.9,0.25]
[1642512910171,46.44681773,135.96,135.88,23.9214]
[1642512910373,3.192,135.95,135.88,23.9214]
[1642512910571,11.0401,135.94,135.87,10.65]
[1642512910777,2.943,135.93,135.88,0.25]
[1642512910970,8.943,135.94,135.88,0.25]
[1642512912273,8.943,135.94,135.87,0.25]
[1642512912474,11.0403,135.93,135.86,45.3719]
[1642512912671,8.943,135.94,135.86,45.3719]
[1642512912872,2.08193269,135.92,135.86,45.3719]
[1642512913072,45.34184982,135.91,135.86,45.3719]
[1642512913473,45.34184982,135.91,135.87,10.65]
[1642512913673,45.34184982,135.91,135.86,45.3719]
[1642512913877,45.34184982,135.91,135.87,10.65]
[1642512914275,47.42378251,135.91,135.87,10.65]
[1642512915178,47.42378251,135.91,135.81,39.738]
[1642512915380,47.42378251,135.91,135.81,38.3883]
[1642512915381,9.193,135.9,135.81,38.3883]
[1642512915578,22.02495272,135.9,135.81,24.7953]
[1642512915778,28.2629,135.9,135.81,24.7953]
[1642512915978,3.87098541,135.89,135.78,4.78840893]
[1642512916179,3.194,135.88,135.79,0.25]
[1642512916382,8.944,135.88,135.79,0.25]
[1642512916978,19.989,135.88,135.79,0.25]
[1642512917185,2.08193269,135.85,135.79,0.25]
[1642512917479,41.51218472,135.84,135.79,0.25]
[1642512917683,2.08193269,135.85,135.79,0.25]
[1642512917883,2.08193269,135.85,135.79,11.0436]
[1642512918083,2.08193269,135.85,135.79,98.4986]
[1642512918283,2.08193269,135.85,135.8,0.25]
[1642512918485,2.08193269,135.86,135.8,0.25]
[1642512918682,35.96943285,135.85,135.8,0.25]
[1642512919080,2.08193269,135.86,135.8,11.2927]
[1642512919480,2.08193269,135.87,135.8,11.5527]
[1642512919680,2.08193269,135.87,135.8,36.5423]
[1642512920282,2.08193269,135.87,135.81,2.944]
[1642512920483,2.08193269,135.88,135.82,11.041]
[1642512920686,2.08193269,135.88,135.82,11.551]
[1642512920886,2.08193269,135.88,135.83,13.594]
[1642512921284,2.08193269,135.88,135.84,0.25]
[1642512921487,2.08193269,135.88,135.84,6.394]
[1642512921684,2.08193269,135.9,135.84,6.654]
[1642512922487,2.08193269,135.9,135.84,17.6921]
[1642512922884,2.08193269,135.91,135.84,17.6921]
[1642512924783,2.08193269,135.91,135.84,17.4321]
[1642512925384,1.58193269,135.91,135.84,17.4321]
[1642512926583,1.58193269,135.91,135.84,11.2881]
[1642512927588,2.943,135.92,135.84,11.2881]
[1642512928588,6.25,135.91,135.84,0.25]
[1642512928789,2.943,135.9,135.81,2.943]
[1642512929191,2.943,135.9,135.82,0.25]
[1642512929391,2.943,135.9,135.8,12.49440893]
[1642512929590,2.943,135.9,135.82,11.0411]
[1642512929790,7.12204404,135.92,135.82,11.0411]
[1642512930194,0.25,135.91,135.82,11.0411]
[1642512930394,2.944,135.9,135.82,11.0411]
[1642512930894,2.944,135.9,135.83,11.2903]
[1642512931091,2.944,135.9,135.83,11.0403]
[1642512931294,2.944,135.92,135.84,0.25]
[1642512932193,2.944,135.92,135.84,11.0393]
[1642512932691,2.944,135.92,135.85,0.25]
[1642512933693,2.944,135.92,135.82,0.25]
[1642512934495,2.944,135.92,135.85,11.0387]
[1642512934695,2.944,135.92,135.82,0.25]
[1642512934892,0.25,135.91,135.82,0.25]
[1642512935093,2.944,135.9,135.82,0.25]
[1642512935694,2.944,135.91,135.82,11.2911]
[1642512935994,20.2356,135.91,135.81,27.78835986]
[1642512936196,20.2356,135.91,135.81,0.04775986]
[1642512936396,1.78905272,135.9,135.81,0.04775986]
[1642512936599,8.944,135.89,135.81,0.04775986]
[1642512936799,40.42364662,135.88,135.81,0.04775986]
[1642512937002,8.944,135.87,135.81,0.04775986]
[1642512937601,6.0,135.87,135.81,0.04775986]
[1642512938301,6.0,135.87,135.81,0.29775986]
[1642512938701,2.944,135.86,135.81,0.29775986]
[1642512939929,6.0,135.87,135.81,0.29775986]
[1642512941135,6.0,135.89,135.81,0.25]
[1642512941331,6.0,135.89,135.81,25.1582]
[1642512941530,6.0,135.9,135.81,25.1582]
[1642512941929,36.81954475,135.89,135.81,25.1582]
[1642512942132,6.0,135.88,135.81,25.1582]
[1642512942333,6.0,135.88,135.81,36.2001]
[1642512942531,6.0,135.88,135.81,25.1582]
[1642512942931,6.0,135.88,135.79,2.944]
[1642512943233,3.194,135.87,135.77,23.0698]
[1642512943433,11.046,135.86,135.76,3.77207609]
[1642512943632,42.76299056,135.84,135.76,3.77207609]
[1642512943835,2.945,135.83,135.76,3.77207609]
[1642512944133,10.98405272,135.83,135.76,3.77207609]
[1642512944332,10.98405272,135.83,135.72,6.71607609]
[1642512945432,22.03385272,135.83,135.72,6.71607609]
[1642512945633,22.03385272,135.83,135.72,3.77207609]
[1642512946033,22.03385272,135.83,135.71,33.9728]
[1642512946533,20.2448,135.83,135.71,33.9728]
[1642512946735,19.9948,135.83,135.71,33.9728]
[1642512947239,0.25,135.82,135.71,33.9728]
[1642512947438,2.946,135.81,135.71,36.9188]
[1642512947635,2.946,135.81,135.71,33.9728]
[1642512947836,0.25,135.8,135.71,22.9232]
[1642512948037,46.20806447,135.79,135.71,22.9232]
[1642512948236,0.25,135.78,135.71,22.9232]
[1642512948442,6.0,135.78,135.71,22.9232]
[1642512948636,2.946,135.79,135.71,22.9232]
[1642512948835,2.946,135.8,135.71,22.9232]
[1642512949035,2.946,135.82,135.72,0.25]
[1642512949237,13.596,135.86,135.72,0.25]
[1642512949436,4.17804404,135.83,135.72,0.25]
[1642512949740,4.17804404,135.83,135.73,84.51]
[1642512950138,4.17804404,135.83,135.74,0.25]
[1642512950740,38.25957238,135.84,135.74,0.25]
[1642512950941,38.25957238,135.84,135.75,2.945]
[1642512951139,38.25957238,135.84,135.75,13.9916]
[1642512951339,38.25957238,135.84,135.76,0.25]
[1642512951539,11.0471,135.85,135.76,0.25]
[1642512951743,7.12404404,135.86,135.76,0.25]
[1642512951938,6.0,135.84,135.76,0.25]
[1642512952139,7.12404404,135.86,135.76,0.25]
[1642512952343,18.16954404,135.86,135.76,11.296]
[1642512952539,7.12404404,135.86,135.76,11.046]
[1642512952738,6.0,135.85,135.77,3.195]
[1642512952941,6.0,135.85,135.78,73.86]
[1642512953141,4.17804404,135.88,135.79,13.595]
[1642512953340,4.17804404,135.88,135.79,13.845]
[1642512953542,4.17804404,135.88,135.79,14.105]
[1642512954240,35.61585655,135.9,135.79,14.105]
[1642512954440,35.61585655,135.9,135.79,25.1485]
[1642512955140,35.61585655,135.9,135.8,73.86]
[1642512955340,4.17804404,135.92,135.81,10.9]
[1642512955341,2.944,135.91,135.81,10.9]
[1642512955742,2.944,135.91,135.81,11.16]
[1642512955945,2.944,135.91,135.81,85.02]
[1642512956344,50.94216678,135.91,135.81,85.02]
[1642512956543,50.94216678,135.91,135.83,11.0397]
[1642512956743,50.94216678,135.91,135.84,0.25]
[1642512957345,47.99816678,135.91,135.84,0.25]
[1642512957948,47.99816678,135.91,135.82,11.2905]
[1642512958147,3.194,135.9,135.82,0.25]
[1642512958347,9.194,135.9,135.81,10.65]
[1642512958549,9.194,135.9,135.79,23.8222]
[1642512958749,9.194,135.9,135.8,0.25]
[1642512959148,11.0434,135.89,135.8,0.25]
[1642512959350,2.944,135.88,135.8,0.25]
[1642512959547,2.944,135.89,135.8,0.25]
[1642512960348,13.9871,135.89,135.79,23.8222]
[1642512960548,6.0,135.88,135.79,23.8222]
[1642512960750,38.83600753,135.86,135.77,24.0736]
[1642512961154,2.944,135.87,135.78,0.59487622]
[1642512961351,2.944,135.87,135.78,11.63937622]
[1642512961852,2.944,135.87,135.79,0.25]
[1642512962053,8.944,135.88,135.79,0.25]
[1642512962253,51.20638576,135.88,135.79,0.25]
[1642512962952,8.944,135.88,135.79,11.2935]
[1642512963352,6.0,135.88,135.8,2.944]
[1642512963553,8.944,135.89,135.79,3.194]
[1642512963954,8.944,135.89,135.8,12.76580904]
[1642512964154,4.17804404,135.9,135.81,20.94578553]
[1642512964356,4.17804404,135.9,135.81,70.36489457]
[1642512964554,4.17804404,135.9,135.81,70.62489457]
[1642512964754,4.17804404,135.91,135.81,70.62489457]
[1642512965357,4.17804404,135.91,135.83,11.0387]
[1642512965558,4.17804404,135.91,135.84,8.74384323]
[1642512965755,4.17804404,135.91,135.84,8.99384323]
[1642512966154,10.17804404,135.93,135.84,8.99384323]
[1642512966356,10.17804404,135.93,135.84,11.93684323]
[1642512966957,10.17804404,135.93,135.85,11.038]
[1642512967156,6.0,135.93,135.86,2.943]
[1642512967357,6.0,135.93,135.87,20.94578553]
[1642512967558,6.0,135.94,135.87,20.94578553]
[1642512967761,6.0,135.94,135.88,0.25]
[1642512967959,5.70253822,135.95,135.88,6.25]
[1642512968158,4.17804404,135.96,135.89,2.943]
[1642512968657,4.17804404,135.96,135.9,0.25]
[1642512969058,4.17804404,135.96,135.91,11.0339]
[1642512969258,4.17804404,135.96,135.92,0.25]
[1642512969458,4.17804404,135.99,135.92,0.25]
[1642512969858,46.69001182,135.99,135.92,0.25]
[1642512970268,4.17804404,135.99,135.92,0.25]
[1642512970757,4.17804404,135.99,135.93,11.0323]
[1642512971160,4.17804404,135.99,135.94,0.25]
[1642512971359,4.17804404,136.01,135.94,21.19578553]
[1642512971562,6.0,136.0,135.94,21.19578553]
[1642512971760,6.0,136.0,135.94,32.22708553]
[1642512971959,4.17804404,136.01,135.94,11.2813]
[1642512972762,54.28654443,136.02,135.94,11.2813]
[1642512972966,4.17804404,136.02,135.94,11.2813]
[1642512973161,4.17804404,136.02,135.94,19.5763]
[1642512973595,4.17804404,136.02,135.94,19.8363]
[1642512973786,4.17804404,136.02,135.95,28.98594205]
[1642512973987,4.17804404,136.03,135.95,28.98594205]
[1642512974186,4.17804404,136.03,135.97,11.0288]
[1642512974388,4.17804404,136.03,135.97,17.3128]
[1642512974887,4.17804404,136.03,135.98,0.25]
[1642512975088,4.17804404,136.03,135.98,0.95368671]
[1642512975388,4.17804404,136.03,135.99,11.0273]
[1642512975787,4.17804404,136.03,136.0,0.25]
[1642512975987,1.33687945,136.05,136.01,3.03219997]
[1642512976188,4.17804404,136.06,136.02,0.25]
[1642512976587,4.17804404,136.06,136.02,23.18717391]
[1642512976791,4.17804404,136.06,136.02,0.25]
[1642512977792,8.36031761,136.07,136.02,0.25]
[1642512978692,8.36031761,136.07,136.02,11.2749]
[1642512978892,4.17804404,136.07,136.02,11.2749]
[1642512979092,4.17804404,136.07,136.03,2.89300056]
[1642512979692,4.17804404,136.07,136.03,13.91700056]
[1642512980093,4.17804404,136.08,136.03,13.91700056]
[1642512980294,4.17804404,136.08,136.04,0.25]
[1642512980696,4.17804404,136.08,136.04,8.883]
[1642512981296,4.17804404,136.09,136.04,8.883]
[1642512982300,4.17804404,136.09,136.05,24.11521727]
[1642512982702,4.17804404,136.09,136.06,0.25]
[1642512982902,4.17804404,136.09,136.07,6.06439994]
[1642512983703,4.17804404,136.1,136.07,6.06439994]
[1642512984203,4.17804404,136.1,136.05,24.11521727]
[1642512984503,4.17804404,136.1,136.06,0.25]
[1642512985505,4.17804404,136.1,136.04,0.25]
[1642512985706,4.17804404,136.1,136.04,28.58854568]
[1642512986107,4.17804404,136.1,136.04,39.61184568]
[1642512986805,4.17804404,136.09,136.04,39.61184568]
[1642512987007,4.17804404,136.09,136.04,39.36184568]